bitfinex-derivatives/quotes_BTCF0:USTF0_20241130
["timestamp","ask_amount","ask_price","bid_price","bid_amount"]
[1732948542536,0.051583,96888.0,96885.0,0.051584]
[1732948543044,0.051583,96888.0,96883.0,0.3608]
[1732948543233,0.051583,96888.0,96878.0,0.08184093]
[1732948543543,0.09500863,96895.0,96879.0,0.05481372]
[1732948543746,0.09500863,96895.0,96879.0,0.051587]
[1732948543932,0.051583,96888.0,96879.0,0.051587]
[1732948544337,0.051583,96887.0,96879.0,0.051587]
[1732948544538,0.09500863,96895.0,96879.0,0.051587]
[1732948544736,0.051583,96886.0,96879.0,0.052587]
[1732948545541,0.051583,96886.0,96881.0,0.051586]
[1732948545938,0.09700863,96895.0,96881.0,0.051586]
[1732948545939,0.051584,96885.0,96881.0,0.051586]
[1732948546140,0.001,96895.0,96881.0,0.051586]
[1732948546141,0.001,96886.0,96881.0,0.051586]
[1732948546442,0.001,96886.0,96879.0,0.001]
[1732948546636,0.051586,96881.0,96880.0,0.0032268]
[1732948547830,0.3608,96884.0,96876.0,0.000101]
[1732948548033,0.051588,96877.0,96876.0,0.000101]
[1732948549860,0.051588,96877.0,96876.0,0.001101]
[1732948550639,0.052588,96877.0,96876.0,0.001101]
[1732948551048,0.053588,96877.0,96876.0,0.001101]
[1732948562143,0.414388,96877.0,96876.0,0.001101]
[1732948562447,0.50941394,96877.0,96876.0,0.001101]
[1732948573252,0.50941394,96877.0,96842.0,0.43372]
[1732948573253,0.051601,96853.0,96850.0,0.05373357]
[1732948573461,0.051601,96853.0,96845.0,0.2594]
[1732948573752,0.051601,96853.0,96840.0,0.05373357]
[1732948573753,0.051605,96846.0,96840.0,0.05373357]
[1732948573958,0.051605,96846.0,96845.0,0.00322779]
[1732948574252,0.051706,96846.0,96840.0,0.01224299]
[1732948574454,0.051706,96846.0,96836.0,0.05373357]
[1732948575265,0.057706,96846.0,96836.0,0.05373357]
[1732948575556,0.066706,96846.0,96836.0,0.06618338]
[1732948575752,0.3608,96845.0,96835.0,0.3608]
[1732948575952,0.45584727,96845.0,96835.0,0.3608]
[1732948576347,0.45584727,96845.0,96836.0,0.02065966]
[1732948576650,0.45584727,96845.0,96835.0,0.41453357]
[1732948576851,0.45584727,96845.0,96835.0,0.3608]
[1732948577961,0.46484727,96845.0,96832.0,0.01242323]
[1732948578955,0.46984727,96845.0,96832.0,0.01242323]
[1732948579357,0.3748,96845.0,96832.0,0.01242323]
[1732948580245,0.46985957,96845.0,96832.0,0.01242323]
[1732948581058,0.3748,96845.0,96832.0,0.01242323]
[1732948581558,0.3748,96845.0,96835.0,0.02065966]
[1732948582958,0.3748,96845.0,96830.0,0.36090268]
[1732948583149,0.46986099,96845.0,96830.0,0.00010268]
[1732948584464,0.3688,96845.0,96844.0,6.2e-07]
[1732948584648,0.3778,96845.0,96844.0,6.2e-07]
[1732948584959,0.47286995,96845.0,96844.0,6.2e-07]
[1732948585147,0.47286995,96845.0,96830.0,0.00010268]
[1732948585347,0.051613,96831.0,96830.0,0.00010268]
[1732948586058,0.321013,96831.0,96830.0,0.00010268]
[1732948588052,0.330013,96831.0,96830.0,0.00010268]
[1732948588354,0.339013,96831.0,96830.0,0.00010268]
[1732948597164,0.069613,96831.0,96830.0,0.00010268]
[1732948610170,0.360901,96846.0,96830.0,0.00010268]
[1732948610171,0.09506749,96845.0,96830.0,0.45306268]
[1732948610373,0.051607,96842.0,96840.0,0.051608]
[1732948610576,0.051607,96842.0,96841.0,0.41136]
[1732948611681,0.052607,96842.0,96841.0,0.41136]
[1732948613579,0.053607,96842.0,96841.0,0.41936]
[1732948613882,0.055687,96842.0,96841.0,0.008]
[1732948620183,0.053607,96842.0,96841.0,0.008]
[1732948621487,0.002,96842.0,96841.0,0.008]
[1732948623186,0.002,96842.0,96841.0,0.16092]
[1732948623376,0.000101,96846.0,96845.0,0.051605]
[1732948624787,0.001101,96846.0,96845.0,0.056605]
[1732948624988,0.002101,96846.0,96845.0,0.065605]
[1732948628491,0.002101,96846.0,96845.0,0.218525]
[1732948629195,0.002101,96846.0,96845.0,0.21997836]
[1732948630391,0.004181,96846.0,96845.0,0.06705836]
[1732948635188,0.004181,96846.0,96845.0,0.06784319]
[1732948635889,0.004181,96846.0,96845.0,0.06847703]
[1732948637581,0.004181,96846.0,96845.0,0.0717049]
[1732948638897,0.004181,96846.0,96845.0,0.06847703]
[1732948639794,0.004181,96846.0,96845.0,0.07170487]
[1732948639988,0.004181,96846.0,96845.0,0.06847703]
[1732948641591,0.004181,96846.0,96845.0,0.06889077]
[1732948645593,0.002101,96846.0,96845.0,0.06889077]
[1732948646194,0.002101,96846.0,96845.0,0.07211841]
[1732948646397,0.002101,96846.0,96845.0,0.31741841]
[1732948649704,0.002101,96846.0,96845.0,0.31419077]
[1732948650003,0.002101,96846.0,96845.0,0.31741823]
[1732948650193,0.002101,96846.0,96845.0,0.07280147]
[1732948650398,0.004181,96846.0,96845.0,0.06957401]
[1732948650702,0.252381,96846.0,96845.0,0.06957401]
[1732948650897,0.5969314,96846.0,96845.0,0.01796901]
[1732948651093,0.051607,96842.0,96841.0,0.01226389]
[1732948651298,0.0950504,96845.0,96834.0,0.051611]
[1732948651800,0.051609,96839.0,96834.0,0.051611]
[1732948652502,0.051606,96844.0,96838.0,0.051609]
[1732948652898,0.09505727,96845.0,96838.0,0.051609]
[1732948653299,0.09505727,96845.0,96841.0,0.001]
[1732948653300,0.001,96842.0,96841.0,0.001]
[1732948654110,0.051607,96842.0,96841.0,0.051607]
[1732948654899,0.052607,96842.0,96841.0,0.051607]
[1732948655308,0.053607,96842.0,96841.0,0.051607]
[1732948657217,0.002,96842.0,96841.0,0.051607]
[1732948662317,0.00408,96842.0,96841.0,0.051607]
[1732948662919,0.00408,96842.0,96841.0,0.06403937]
[1732948664829,0.00408,96842.0,96841.0,0.06726743]
[1732948669917,0.00408,96842.0,96841.0,0.06403937]
[1732948670116,0.00408,96842.0,96841.0,0.06726729]
[1732948671231,0.00408,96842.0,96841.0,0.06403937]
[1732948671417,0.00408,96842.0,96841.0,0.06726737]
[1732948671919,0.002,96842.0,96841.0,0.43323203]
[1732948672123,0.2494,96866.0,96864.0,0.051595]
[1732948672325,0.09504162,96865.0,96864.0,0.051595]
[1732948672537,0.09712162,96865.0,96864.0,0.05482235]
[1732948672837,0.00208,96865.0,96864.0,0.05482235]
[1732948673423,0.00208,96865.0,96864.0,0.05582235]
[1732948674015,0.00308,96865.0,96864.0,0.05782235]
[1732948674228,0.00408,96865.0,96864.0,0.05782234]
[1732948675027,0.00308,96865.0,96864.0,0.05582234]
[1732948675227,0.00408,96865.0,96864.0,0.05782234]
[1732948675825,0.00308,96865.0,96864.0,0.05882234]
[1732948676026,0.00408,96865.0,96864.0,0.05882234]
[1732948676422,0.002,96865.0,96864.0,0.05882234]
[1732948676623,0.002,96865.0,96864.0,0.21670612]
[1732948677726,0.002,96865.0,96864.0,0.22900569]
[1732948678534,0.002,96865.0,96864.0,0.22384191]
[1732948681135,0.002,96865.0,96864.0,0.22061457]
[1732948681432,0.00408,96865.0,96864.0,0.00722727]
[1732948681635,0.00408,96865.0,96864.0,0.004]
[1732948682936,0.00408,96865.0,96864.0,0.055595]
[1732948683827,0.00408,96865.0,96864.0,0.05882221]
[1732948683828,0.002,96865.0,96864.0,0.05882221]
[1732948686139,0.002,96865.0,96864.0,0.06398547]
[1732948687437,0.002,96865.0,96864.0,0.055595]
[1732948687825,0.002,96865.0,96864.0,0.0639853]
[1732948690139,0.002,96865.0,96864.0,0.055595]
[1732948690340,0.002,96865.0,96864.0,0.06398523]
[1732948695845,0.00408,96865.0,96864.0,0.06398523]
[1732948696348,0.00408,96865.0,96864.0,0.055595]
[1732948700546,0.00408,96865.0,96864.0,0.0588223]
[1732948701246,0.00408,96865.0,96864.0,0.055595]
[1732948701645,0.00408,96865.0,96864.0,0.05882234]
[1732948703549,0.00408,96865.0,96864.0,0.055595]
[1732948703845,0.00408,96865.0,96864.0,0.05882221]
[1732948707349,0.00408,96865.0,96864.0,0.05882219]
[1732948707845,0.002,96865.0,96864.0,0.06398557]
[1732948708250,0.002,96865.0,96864.0,0.07043953]
[1732948709045,0.001,96865.0,96864.0,0.06943953]
[1732948709238,0.2575,96876.0,96864.0,0.01584453]
[1732948709444,0.2575,96876.0,96875.0,0.412389]
[1732948709645,0.26730001,96883.0,96875.0,0.57337957]
[1732948709839,0.01249472,96893.0,96875.0,0.57337957]
[1732948709840,0.2592,96900.0,96886.0,0.051583]
[1732948710036,0.2592,96900.0,96898.0,0.051577]
[1732948710037,0.09500572,96899.0,96898.0,0.051577]
[1732948710237,0.09708572,96899.0,96898.0,0.051577]
[1732948710847,0.00208,96899.0,96898.0,0.051577]
[1732948711553,0.00208,96899.0,96898.0,0.058577]
[1732948711743,0.00208,96899.0,96898.0,0.007]
[1732948713347,0.053656,96899.0,96898.0,0.007]
[1732948714853,0.14865953,96899.0,96898.0,0.007]
[1732948718742,0.206216,96899.0,96898.0,0.007]
[1732948718942,0.30122103,96899.0,96898.0,0.007]
[1732948719156,0.051583,96886.0,96885.0,0.3608]
[1732948720753,0.051583,96886.0,96885.0,0.412384]
[1732948720947,0.052583,96886.0,96885.0,0.420384]
[1732948721147,0.053583,96886.0,96885.0,0.429384]
[1732948721549,0.051583,96886.0,96885.0,0.412384]
[1732948721854,0.051583,96886.0,96885.0,0.429384]
[1732948721855,0.053583,96886.0,96885.0,0.429384]
[1732948722955,0.053583,96886.0,96885.0,0.068584]
[1732948724253,0.053583,96886.0,96885.0,0.017]
[1732948725852,0.051587,96879.0,96878.0,0.00154823]
[1732948726458,0.586187,96879.0,96878.0,0.00154823]
[1732948727060,0.587187,96879.0,96878.0,0.01054823]
[1732948727573,0.68221043,96879.0,96878.0,0.009]
[1732948727769,0.68321043,96879.0,96878.0,0.018]
[1732948728357,0.68221043,96879.0,96878.0,0.009]
[1732948728564,0.68321043,96879.0,96878.0,0.018]
[1732948729162,0.68321043,96879.0,96878.0,0.009]
[1732948730169,0.051592,96870.0,96869.0,0.02065147]
[1732948731970,0.051592,96870.0,96853.0,0.02065147]
[1732948731971,0.001,96870.0,96853.0,0.02065147]
[1732948732164,0.001,96870.0,96830.0,0.08197815]
[1732948732165,0.3608,96863.0,96830.0,0.08197815]
[1732948732369,0.051601,96853.0,96840.0,0.08187547]
[1732948732761,0.051603,96850.0,96848.0,0.051603]
[1732948733163,0.09502736,96858.0,96840.0,0.08187547]
[1732948733462,0.051604,96848.0,96840.0,0.08187547]
[1732948733663,0.051604,96848.0,96847.0,0.051604]
[1732948733966,0.009,96853.0,96851.0,0.051602]
[1732948734166,0.009,96853.0,96843.0,0.01218208]
[1732948734167,0.051604,96848.0,96843.0,0.01218208]
[1732948734366,0.009,96853.0,96786.0,0.051636]
[1732948734367,0.051605,96845.0,96844.0,0.00154861]
[1732948735578,0.051605,96845.0,96830.0,0.08197815]
[1732948735579,0.3608,96846.0,96832.0,0.412412]
[1732948735875,0.05161,96836.0,96833.0,0.051611]
[1732948736572,0.051611,96834.0,96832.0,0.3608]
[1732948736774,0.051613,96831.0,96830.0,0.00010268]
[1732948738067,0.052613,96831.0,96830.0,0.00010268]
[1732948739776,0.053613,96831.0,96830.0,0.00010268]
[1732948740275,0.051623,96812.0,96811.0,0.3608]
[1732948741283,0.05172568,96812.0,96811.0,0.3608]
[1732948741470,0.06072568,96812.0,96811.0,0.3608]
[1732948742780,0.06972568,96812.0,96811.0,0.3608]
[1732948743474,0.051623,96811.0,96809.0,0.3608]
[1732948744279,0.01810268,96812.0,96811.0,0.051623]
[1732948744574,0.00910268,96812.0,96811.0,0.051623]
[1732948745979,0.00010268,96812.0,96811.0,0.051623]
[1732948746277,0.00910268,96812.0,96811.0,0.051623]
[1732948746468,0.01810268,96812.0,96811.0,0.051623]
[1732948747271,0.01810268,96812.0,96811.0,0.05485201]
[1732948748679,0.01810268,96812.0,96811.0,0.06001842]
[1732948749472,0.01810268,96812.0,96811.0,0.06126061]
[1732948750478,0.01810268,96812.0,96811.0,0.06771833]
[1732948750675,0.01810268,96812.0,96811.0,0.06771796]
[1732948751575,0.01810268,96812.0,96811.0,0.06126023]
[1732948752179,0.01810268,96812.0,96811.0,0.06771812]
[1732948754083,0.01810268,96812.0,96811.0,0.06771808]
[1732948754279,0.01810268,96812.0,96811.0,0.06771785]
[1732948754781,0.01810268,96812.0,96811.0,0.06775785]
[1732948755175,0.01810268,96812.0,96811.0,0.06771785]
[1732948756075,0.01810268,96812.0,96811.0,0.06850266]
[1732948756782,0.01810268,96812.0,96811.0,0.22086266]
[1732948757177,0.01810268,96812.0,96811.0,0.24216256]
[1732948757487,0.01810268,96812.0,96811.0,0.08980256]
[1732948758587,0.00154996,96832.0,96831.0,0.051613]
[1732948758879,0.3608,96858.0,96838.0,0.051608]
[1732948759075,0.3608,96858.0,96839.0,0.01485144]
[1732948759277,0.04894469,96843.0,96840.0,0.01485144]
[1732948759475,0.04894469,96843.0,96841.0,0.00839498]
[1732948759678,0.04894469,96843.0,96842.0,0.00839498]
[1732948759882,0.15236,96857.0,96842.0,0.00839498]
[1732948760074,0.051604,96847.0,96843.0,0.0148512]
[1732948760386,0.15236,96857.0,96846.0,0.051604]
[1732948760570,0.051602,96851.0,96847.0,0.00839498]
[1732948760776,0.051602,96851.0,96848.0,0.00839293]
[1732948760974,0.051602,96851.0,96849.0,0.00839293]
[1732948761175,0.051602,96851.0,96850.0,0.00839293]
[1732948761370,0.051602,96851.0,96850.0,0.00839296]
[1732948762083,0.051602,96851.0,96850.0,0.0148491]
[1732948762382,0.00056001,96863.0,96850.0,0.37564788]
[1732948762684,0.2441,96871.0,96863.0,0.051595]
[1732948762887,0.2441,96871.0,96864.0,0.01484788]
[1732948762888,0.051594,96866.0,96864.0,0.01484788]
[1732948763076,0.051594,96866.0,96865.0,0.01484788]
[1732948763274,0.2441,96871.0,96865.0,0.37564788]
[1732948763275,0.295692,96871.0,96865.0,0.37564788]
[1732948763483,0.295692,96871.0,96866.0,0.01484788]
[1732948763674,0.2441,96871.0,96868.0,0.051593]
[1732948763874,0.2441,96871.0,96860.0,0.08187547]
[1732948763875,0.2441,96871.0,96869.0,0.01484788]
[1732948764079,0.2441,96871.0,96860.0,0.08187547]
[1732948764080,0.2441,96871.0,96870.0,0.37564452]
[1732948765181,0.05158,96893.0,96886.0,0.051583]
[1732948765480,0.2618,96896.0,96894.0,0.051579]
[1732948765684,0.2618,96896.0,96895.0,0.00839038]
[1732948766285,0.2618,96896.0,96895.0,0.00322707]
[1732948767387,0.2618,96896.0,96894.0,0.003]
[1732948767388,0.2618,96896.0,96894.0,0.051579]
[1732948767587,0.2618,96896.0,96895.0,0.00622647]
[1732948768287,0.2618,96896.0,96895.0,0.003]
[1732948768485,0.2618,96896.0,96895.0,0.00622646]
[1732948769083,0.2618,96896.0,96895.0,0.00322646]
[1732948769281,0.2618,96896.0,96894.0,0.054579]
[1732948769889,0.2618,96896.0,96895.0,0.003]
[1732948770684,0.2618,96896.0,96894.0,0.054579]
[1732948770990,0.051579,96895.0,96894.0,0.003]
[1732948771486,0.051579,96895.0,96894.0,0.004]
[1732948772092,0.051579,96895.0,96894.0,0.003]
[1732948772396,0.051579,96895.0,96894.0,0.001]
[1732948773087,0.051579,96895.0,96894.0,0.004]
[1732948784194,0.412379,96895.0,96894.0,0.004]
[1732948787596,0.412379,96895.0,96894.0,0.0072267]
[1732948788299,0.412379,96895.0,96894.0,0.004]
[1732948788500,0.412379,96895.0,96894.0,0.0072267]
[1732948788897,0.051579,96895.0,96894.0,0.055579]
[1732948789100,0.051579,96895.0,96894.0,0.06396787]
[1732948789706,0.2618,96896.0,96894.0,0.06396787]
[1732948790010,0.2618,96896.0,96895.0,0.00838887]
[1732948791610,0.2618,96896.0,96895.0,0.0093888]
[1732948792199,0.2618,96896.0,96895.0,0.0123888]
[1732948792698,0.2618,96896.0,96895.0,0.00722646]
[1732948793912,0.01221848,96902.0,96895.0,0.01884174]
[1732948794105,0.051574,96903.0,96899.0,0.051576]
[1732948795007,0.002,96902.0,96896.0,0.01484174]
[1732948795315,0.051577,96898.0,96895.0,0.003]
[1732948795495,0.051577,96898.0,96897.0,0.01484176]
[1732948795701,0.051577,96898.0,96895.0,0.001]
[1732948795904,0.051577,96898.0,96897.0,0.01484167]
[1732948796110,0.051577,96898.0,96897.0,0.01488167]
[1732948796306,0.051577,96898.0,96897.0,0.01484167]
[1732948798212,0.051577,96898.0,96896.0,0.051578]
[1732948798420,0.051577,96898.0,96897.0,0.01684168]
[1732948799201,0.051577,96898.0,96897.0,0.01484168]
[1732948799405,0.051577,96898.0,96897.0,0.01488168]
[1732948800307,0.051574,96903.0,96901.0,0.051575]
[1732948800514,0.051574,96903.0,96902.0,0.01484168]
[1732948801702,0.15204,96906.0,96905.0,0.051573]
[1732948801909,0.15204,96906.0,96905.0,0.06641468]
[1732948802401,0.00064,96910.0,96908.0,0.051572]
[1732948802706,0.051569,96913.0,96912.0,0.051569]
[1732948803013,0.051569,96913.0,96912.0,0.05995777]
[1732948803306,0.2444,96920.0,96912.0,0.05995777]
[1732948803307,0.00154827,96915.0,96914.0,0.051568]
[1732948803510,0.00154827,96915.0,96914.0,0.06640774]
[1732948803905,0.00154827,96915.0,96914.0,0.06644774]
[1732948804101,0.00154827,96915.0,96914.0,0.06640774]
[1732948804604,0.00154827,96915.0,96914.0,0.06740774]
[1732948805004,0.00354827,96915.0,96914.0,0.06740774]
[1732948806016,0.15204,96932.0,96914.0,0.07140774]
[1732948806313,0.25660753,96933.0,96928.0,0.051561]
[1732948806512,0.25660753,96933.0,96929.0,0.05994574]
[1732948806702,0.25660753,96933.0,96930.0,0.00322528]
[1732948806703,0.051559,96932.0,96930.0,0.00322528]
[1732948806902,0.051559,96932.0,96931.0,0.00322529]
[1732948807112,0.2444,96933.0,96931.0,0.00838559]
[1732948807317,0.002,96932.0,96924.0,0.051563]
[1732948807613,0.051562,96927.0,96925.0,0.01483611]
[1732948807811,0.002,96932.0,96926.0,0.01483611]
[1732948808001,0.002,96932.0,96924.0,0.051563]
[1732948808002,0.051561,96928.0,96927.0,0.00838562]
[1732948809412,0.051561,96928.0,96927.0,0.01483611]
[1732948809611,0.002,96932.0,96927.0,0.06639711]
[1732948809817,0.002,96932.0,96928.0,0.00838562]
[1732948810013,0.002,96932.0,96929.0,0.00838562]
[1732948810311,0.053559,96932.0,96930.0,0.00838562]
[1732948810516,0.051559,96932.0,96931.0,0.00838562]
[1732948811313,0.053559,96932.0,96931.0,0.00838562]
[1732948812214,0.002,96932.0,96931.0,0.00838562]
[1732948812714,0.002,96932.0,96931.0,0.36918562]
[1732948813218,0.2444,96933.0,96931.0,0.36918562]
[1732948813511,0.002,96932.0,96931.0,0.3618]
[1732948813714,0.002,96932.0,96931.0,0.37018522]
[1732948814312,0.002,96932.0,96931.0,0.36918523]
[1732948814508,0.002,96932.0,96931.0,0.36402509]
[1732948815017,0.2464,96933.0,96931.0,0.36402509]
[1732948815217,0.2464,96933.0,96932.0,0.00322509]
[1732948815218,0.297959,96933.0,96932.0,0.00322509]
[1732948815515,0.297959,96933.0,96932.0,0.00322522]
[1732948815717,0.297959,96933.0,96931.0,0.002]
[1732948817015,0.295959,96933.0,96931.0,0.003]
[1732948817413,0.295959,96933.0,96931.0,0.054559]
[1732948817606,0.295959,96933.0,96931.0,0.053559]
[1732948817912,0.295959,96933.0,96931.0,0.052559]
[1732948828122,0.295959,96933.0,96931.0,0.054559]
[1732948828317,0.295959,96933.0,96931.0,0.056559]
[1732948829021,0.2444,96933.0,96931.0,0.056559]
[1732948831625,0.2444,96933.0,96932.0,0.00322498]
[1732948832825,0.2444,96933.0,96932.0,0.00822498]
[1732948833311,0.2444,96933.0,96932.0,0.01338509]
[1732948833516,0.295958,96933.0,96932.0,0.01338509]
[1732948833715,0.2444,96933.0,96932.0,0.06494409]
[1732948834322,0.295958,96933.0,96932.0,0.01338509]
[1732948834523,0.295958,96933.0,96932.0,0.00822498]
[1732948834830,0.295958,96933.0,96932.0,0.00822525]
[1732948839518,0.295958,96933.0,96932.0,0.005]
[1732948844631,0.295958,96933.0,96932.0,0.00822517]
[1732948844831,0.295958,96933.0,96932.0,0.005]
[1732948845929,0.295958,96933.0,96932.0,0.008]
[1732948846639,0.295958,96933.0,96932.0,0.007]
[1732948847332,0.295958,96933.0,96932.0,0.005]
[1732948847527,0.295958,96933.0,96932.0,0.009]
[1732948855839,0.656758,96933.0,96932.0,0.009]
[1732948856037,0.75173038,96933.0,96932.0,0.009]
[1732948857030,0.051567,96916.0,96912.0,0.00154787]
[1732948857338,0.051567,96916.0,96890.0,0.3608]
[1732948857339,0.051574,96903.0,96902.0,0.01216596]
[1732948857634,0.3608,96913.0,96893.0,0.1514]
[1732948857635,0.14863335,96912.0,96893.0,0.1514]
[1732948857830,0.051578,96896.0,96893.0,0.1514]
[1732948858428,0.051578,96896.0,96891.0,0.05158]
[1732948858638,0.051578,96896.0,96895.0,0.02064061]
[1732948859240,0.057578,96896.0,96895.0,0.02064061]
[1732948859830,0.066578,96896.0,96895.0,0.02164061]
[1732948860236,0.066578,96896.0,96895.0,0.001]
[1732948860831,0.066578,96896.0,96895.0,0.002]
[1732948860832,0.069578,96896.0,96895.0,0.002]
[1732948864142,0.018,96896.0,96895.0,0.002]
[1732948864842,0.018,96896.0,96895.0,0.30522605]
[1732948864843,0.00699623,96896.0,96895.0,0.30522605]
[1732948865043,0.0015481,96916.0,96915.0,0.051568]
[1732948865246,0.051569,96914.0,96912.0,0.3608]
[1732948866542,0.051569,96914.0,96912.0,0.3698]
[1732948866543,0.052569,96914.0,96912.0,0.3698]
[1732948866940,0.2561,96913.0,96912.0,0.3698]
[1732948867143,0.001,96914.0,96912.0,0.3698]
[1732948867442,0.001,96914.0,96912.0,0.421369]
[1732948868037,0.001,96914.0,96912.0,0.3688]
[1732948868240,0.001,96914.0,96913.0,0.051569]
[1732948869841,0.0015481,96916.0,96913.0,0.060569]
[1732948870046,0.001,96914.0,96913.0,0.069569]
[1732948870239,0.001,96914.0,96913.0,0.018]
[1732948870839,0.052568,96914.0,96913.0,0.018]
[1732948871239,0.052568,96914.0,96913.0,0.009]
[1732948871444,0.051568,96914.0,96913.0,0.018]
[1732948871948,0.0015481,96916.0,96914.0,0.051568]
[1732948873140,0.0015481,96916.0,96914.0,0.060568]
[1732948873446,0.0015481,96916.0,96914.0,0.069568]
[1732948876741,0.0531161,96916.0,96914.0,0.069568]
[1732948877845,0.0015481,96916.0,96914.0,0.069568]
[1732948878246,0.051568,96915.0,96914.0,0.018]
[1732948878953,0.051568,96915.0,96914.0,0.069568]
[1732948879148,0.051568,96915.0,96914.0,0.060568]
[1732948879345,0.052568,96915.0,96914.0,0.069568]
[1732948881251,0.001,96915.0,96914.0,0.069568]
[1732948885955,0.001,96915.0,96914.0,0.325468]
[1732948886352,0.001,96915.0,96914.0,0.32869325]
[1732948887847,0.3608,96944.0,96914.0,0.62869325]
[1732948888053,0.2454,96943.0,96942.0,0.051554]
[1732948888257,0.2454,96943.0,96942.0,0.202714]
[1732948889865,0.2685,96953.0,96951.0,0.051549]
[1732948890354,0.2556,96958.0,96956.0,0.051546]
[1732948891456,0.2556,96958.0,96956.0,0.054546]
[1732948894560,0.2556,96958.0,96957.0,0.3608]
[1732948895357,0.2556,96958.0,96956.0,0.054546]
[1732948896658,0.2556,96958.0,96957.0,0.002]
[1732948896857,0.3608,96986.0,96957.0,0.3628]
[1732948897067,0.2458,96977.0,96975.0,0.051536]
[1732948898058,0.051536,96975.0,96970.0,0.051539]
[1732948898361,0.051535,96976.0,96975.0,0.004]
[1732948898960,0.051535,96976.0,96975.0,0.008]
[1732948900067,0.051535,96976.0,96975.0,0.004]
[1732948900459,0.051531,96985.0,96976.0,0.051535]
[1732948900663,0.3608,96986.0,96976.0,0.202615]
[1732948900664,0.051531,96984.0,96976.0,0.202615]
[1732948901666,0.051531,96984.0,96976.0,0.205615]
[1732948902177,0.051531,96984.0,96976.0,0.209615]
[1732948903270,0.3608,96986.0,96976.0,0.209615]
[1732948904868,0.3608,96986.0,96985.0,0.051531]
[1732948905777,0.3608,96989.0,96977.0,0.051535]
[1732948905976,0.74666001,96995.0,96994.0,0.051526]
[1732948906164,0.7461,96995.0,96994.0,0.051526]
[1732948907172,0.7471,96995.0,96988.0,0.01246218]
[1732948907477,0.051527,96992.0,96990.0,0.051528]
[1732948907694,0.74766001,96995.0,96985.0,0.24473393]
[1732948907875,0.05153,96987.0,96985.0,0.24473393]
[1732948908075,0.05153,96987.0,96985.0,0.21454656]
[1732948909876,0.05153,96987.0,96985.0,0.01193656]
[1732948910070,0.05153,96987.0,96976.0,0.051535]
[1732948910071,0.051535,96977.0,96976.0,0.051535]
[1732948910274,0.051535,96977.0,96976.0,0.202335]
[1732948911270,0.3608,96984.0,96976.0,0.004]
[1732948911475,0.051534,96980.0,96979.0,0.051534]
[1732948912977,0.051533,96980.0,96979.0,0.003]
[1732948913485,0.051533,96980.0,96979.0,0.006]
[1732948923880,0.051533,96980.0,96965.0,0.00154682]
[1732948923881,0.051541,96966.0,96965.0,0.00154682]
[1732948924490,0.246,96971.0,96965.0,0.00154682]
[1732948924689,0.56276919,96987.0,96970.0,0.3608]
[1732948924992,0.36136001,96994.0,96980.0,0.3608]
[1732948924993,0.246,96993.0,96980.0,0.3608]
[1732948925191,0.051527,96992.0,96984.0,0.08171737]
[1732948925581,0.246,96993.0,96991.0,0.051527]
[1732948925786,0.3608,96994.0,96984.0,0.08171737]
[1732948926493,0.1,97000.0,96984.0,0.08171737]
[1732948926494,0.1,97000.0,96993.0,0.3608]
[1732948926687,0.1,97000.0,96999.0,0.051523]
[1732948927296,0.1,97000.0,96999.0,0.202323]
[1732948927589,0.245,97018.0,96999.0,0.202323]
[1732948927590,0.09489359,97017.0,96999.0,0.502323]
[1732948927790,0.245,97018.0,97006.0,0.05152]
[1732948928386,0.245,97018.0,97005.0,0.2555]
[1732948928590,0.245,97018.0,97012.0,0.051516]
[1732948928591,0.051514,97017.0,97012.0,0.051516]
[1732948928986,0.245,97018.0,97012.0,0.051516]
[1732948929182,0.051515,97015.0,97012.0,0.051516]
[1732948929582,0.051516,97014.0,97012.0,0.051516]
[1732948930888,0.051516,97014.0,97012.0,0.054516]
[1732948931290,0.051516,97014.0,97012.0,0.051516]
[1732948931489,0.051516,97014.0,97012.0,0.056516]
[1732948931690,0.245,97018.0,97012.0,0.008]
[1732948931997,0.051512,97020.0,97018.0,0.051513]
[1732948932389,0.2631,97032.0,97026.0,0.051509]
[1732948932789,0.051507,97029.0,97021.0,0.051512]
[1732948932994,0.051507,97029.0,97027.0,0.051508]
[1732948933397,0.412304,97035.0,97032.0,0.051505]
[1732948933603,0.3608,97035.0,97029.0,0.15076]
[1732948933796,0.051507,97030.0,97029.0,0.15076]
[1732948935300,0.053507,97030.0,97029.0,0.15076]
[1732948937500,0.051507,97030.0,97029.0,0.15176]
[1732948938100,0.051507,97030.0,97029.0,0.15276]
[1732948939905,0.051507,97030.0,97029.0,0.002]
[1732948949426,0.412307,97030.0,97029.0,0.002]
[1732948954320,0.50718816,97030.0,97029.0,0.002]
[1732948958435,0.14638816,97030.0,97029.0,0.002]
[1732948958737,0.412307,97030.0,97029.0,0.002]
[1732948959031,0.50718816,97030.0,97029.0,0.002]
[1732948961732,0.14638816,97030.0,97029.0,0.002]
[1732948961928,0.051507,97030.0,97029.0,0.002]
[1732948962123,0.35938069,97030.0,97029.0,0.002]
[1732948962629,0.14638816,97030.0,97029.0,0.002]
[1732948962932,0.35924131,97030.0,97029.0,0.002]
[1732948963236,0.14638816,97030.0,97029.0,0.002]
[1732948963427,0.051507,97030.0,97029.0,0.002]
[1732948963629,0.35917536,97030.0,97029.0,0.002]
[1732948964526,0.14637931,97030.0,97029.0,0.002]
[1732948964728,0.051507,97030.0,97029.0,0.002]
[1732948964929,0.35924346,97030.0,97029.0,0.002]
[1732948965435,0.14637931,97030.0,97029.0,0.002]
[1732948965736,0.051507,97030.0,97029.0,0.002]
[1732948970445,0.38866796,97030.0,97029.0,0.002]
[1732948970937,0.14637775,97030.0,97029.0,0.002]
[1732948971139,0.051507,97030.0,97029.0,0.002]